Cogmind - Beta 13 @@@ ROGUE MODE // 2024.07.09 @ 20:04:44 Player: ThatBishHoly Result: Destroyed by P-60 Hacker with Shock Rifle Performance ------------- Evolutions (1) 500 Regions Visited (4) 800 Robots Destroyed (33) 165 Value Destroyed (1724) 1724 Prototype IDs (5) 100 Alien Tech Used (0) 0 Bonus (1239) 1239 TOTAL SCORE: 4528 Bonus ------- High Alert Combat Kills 300 Follower Combat Kills 413 Entered Garrisons 200 Used RIF Installer 500 Friendly Fire -174 Cogmind --------- Core Integrity 0/400 Matter 280/300 Energy 250/250 System Corruption 2% Temperature Cool (65) Movement Walking (120) Location -9/Garrison Parts ------- > --- POWER (1) -------- Ion Engine > --- PROPULSION (4) --- Aluminum Leg Carbon-fiber Leg Carbon-fiber Leg > --- UTILITY (2) ------ Visual Processing Unit Relay Coupler [Behemoth] (10) > --- WEAPON (2) ------- Advanced Beam Cannon > --- INVENTORY (5) ---- Relay Coupler [Grunt] (24) Relay Coupler [Specialist] (18) Katana Peak State ------------ > --- POWER ------------ Ion Engine > --- PROPULSION ------- Aluminum Leg Aluminum Leg Carbon-fiber Leg Carbon-fiber Leg > --- UTILITY ---------- Visual Processing Unit Relay Coupler [Behemoth] > --- WEAPON ----------- Advanced Beam Cannon Mini Grenade Launcher > --- INVENTORY -------- Core Shielding Relay Coupler [Grunt] Relay Coupler [Specialist] Katana [Rating: 23] Favorites ----------- Power Improved Ion Engine Engine Improved Ion Engine Propulsion Aluminum Leg Leg Aluminum Leg Hover Unit Improved Hover Unit Flight Unit Improved Flight Unit Utility Visual Processing Unit Device Drone Bay Storage Large Battery Processor Visual Processing Unit Hackware Relay Coupler [Behemoth] Protection Core Shielding Weapon Autogun Energy Gun Medium Laser Energy Cannon Advanced Beam Cannon Ballistic Gun Autogun Launcher Mini Grenade Launcher Build | -11 -10 -9 -9 -9 ------- Run | Yrd Mat Mat Sto Gar Slots Evolved 2 | . . 2 . . Power . | . . . . . Propulsion 2 | . . 2 . . Utility . | . . . . . Weapon . | . . . . . Parts Attached 43 | 5 10 3 17 8 Power 5 | 1 1 1 1 1 Engine 5 | 1 1 1 1 1 Core . | . . . . . Reactor . | . . . . . Propulsion 17 | 2 1 2 8 4 Treads . | . . . . . Leg 10 | 2 1 . 3 4 Wheel . | . . . . . Hover 6 | . . 2 4 . Flight 1 | . . . 1 . Utility 8 | . 3 . 4 1 Device 2 | . . . 2 . Storage 1 | . 1 . . . Processor 2 | . 1 . 1 . Hackware 1 | . . . . 1 Protection 2 | . 1 . 1 . Artifact . | . . . . . Weapon 13 | 2 5 . 4 2 Energy Gun 2 | 2 . . . . Energy Cannon 2 | . 1 . . 1 Ballistic Gun 6 | . 2 . 4 . Ballistic Cannon . | . . . . . Launcher 3 | . 2 . . 1 Special Weapon . | . . . . . Impact Weapon . | . . . . . Slashing Weapon . | . . . . . Piercing Weapon . | . . . . . Special Melee Weapon . | . . . . . Unidentified Prototypes 3 | . . . 2 1 Parts Lost 15 | . 4 1 1 9 Power 2 | . 1 . . 1 Propulsion 9 | . 2 1 1 5 Utility . | . . . . . Weapon 4 | . 1 . . 3 Highest Loss Streak 4 | . 4 1 1 4 To Critical Strikes . | . . . . . Average Slot Usage (%) 74 | . 78 74 69 76 Engine 9 | . 13 11 11 5 Leg 14 | . 16 . 7 21 Hover 8 | . . 18 8 13 Device 2 | . . . 6 . Storage 1 | . 6 . . . Processor 11 | . 9 11 12 11 Protection 2 | . 5 11 1 . Energy Gun 1 | . 6 . . . Energy Cannon 2 | . . . . 6 Ballistic Gun 14 | . 10 22 22 9 Launcher 4 | . 7 . . 5 Naked Turns . | . . . . . Heaviest Build 19 | 9 12 12 19 13 Greatest Support 50 | 20 20 13 30 50 Greatest Overweight (x) 6 | . 2 1 6 2 Average Overweight (x) . | . . . 1 . Largest Inventory Capacity 5 | 5 5 5 5 5 Average Capacity 5 | 5 5 5 5 5 Most Carried 5 | 5 4 4 5 5 Average Carried 3 | . 1 3 4 4 Final Capacity 5 | 5 5 5 5 5 Final Carried 5 | . 3 4 5 3 Class Distribution -------------------- 59% | Mutant 24% | Commander-Mutant 15% | Scavenger-Mutant Dominant Class ---------------- Mutant | -10/Materials Mutant | -9/Materials Mutant | -9/Storage Scavenger-Mutant | -9/Garrison Resources | -11 -10 -9 -9 -9 ----------- Run | Yrd Mat Mat Sto Gar Matter Collected 1367 | 250 229 52 438 398 Remotely . | . . . . . Salvage Created 1144 | . 203 104 370 467 Parts 70 | . 11 8 19 32 Haulers Intercepted 1 | . . . 1 . Recyclers Shooed . | . . . . . Parts Field Recycled . | . . . . . Retrieved Matter . | . . . . . Parts Self-Destructed . | . . . . . Prevented . | . . . . . Kills | -11 -10 -9 -9 -9 ------- Run | Yrd Mat Mat Sto Gar Combat Hostiles Destroyed 26 | . 5 2 5 14 Guns 15 | . 2 2 5 6 Cannons 7 | . 3 . . 4 AOE 3 | . . . . 3 Classes Destroyed 12 | . 4 1 5 2 Worker 1 | . . . 1 . Hauler 1 | . . . 1 . Recycler 1 | . 1 . . . Operator 2 | . 1 . 1 . Watcher 1 | . . . 1 . Swarmer 7 | . 3 . . 4 Grunt 9 | . 2 . 2 5 Brawler 1 | . . . 1 . Duelist 1 | . . . 1 . Sentry 5 | . . 2 1 2 Hunter 2 | . . . . 2 Programmer 1 | . . . . 1 Thug 1 | . . . . 1 Best Kill Streak 6 | . 6 1 3 4 Combat Bots Only 5 | . 5 1 3 4 Max Kills in Single Turn 2 | . 1 1 1 2 Gunslinging . | . . . . . Exploded 2 | . . . . 2 Melee . | . . . . . Uniques/NPCs Destroyed . | . . . . . Combat | -11 -10 -9 -9 -9 -------- Run | Yrd Mat Mat Sto Gar Hostile Shots Fired 183 | . 59 16 36 72 Missed 41 | . 8 4 10 19 Damage Taken 2208 | . 681 180 460 887 Core 614 | . 206 23 159 226 Absorbed by Shields . | . . . . . Redirected to Shielding 7 | . . 5 2 . Core Remaining (%) 58 | 100 17 . . . Volleys Fired 97 | . 21 8 24 44 Largest 2 | . 2 2 2 2 Hottest 110 | . 110 40 46 98 Shots Fired 182 | . 35 16 47 84 Gun 148 | . 23 16 47 62 Cannon 25 | . 10 . . 15 Launcher 9 | . 2 . . 7 Special . | . . . . . Kinetic 127 | . 2 16 47 62 Thermal 37 | . 22 . . 15 Explosive 9 | . 2 . . 7 Electromagnetic 9 | . 9 . . . Robot Hit Streak 11 | . 10 8 11 8 Robot Miss Streak 5 | . 3 1 3 5 Penetration Max . | . . . . . Secondary Targets 2 | . . . 1 1 Max Gunslinging Chain 1 | . . . 1 1 Shots Hit Robots 104 | . 21 14 32 37 Core Hits 51 | . 10 5 15 21 Critical Kills 1 | . . . . 1 Critical Parts Destroyed 3 | . . . 3 . Critical Strikes 6 | . 2 . 3 1 Burn 2 | . 2 . . . Meltdown 1 | . . . . 1 Destroy 3 | . . . 3 . Melee Attacks . | . . . . . Impact . | . . . . . Slashing . | . . . . . Piercing . | . . . . . Sneak Attacks . | . . . . . Combat Hostiles . | . . . . . Follow-up Attacks . | . . . . . Damage Inflicted 2073 | . 368 183 487 1035 Guns 1305 | . 181 181 487 456 Cannons 294 | . 139 . . 155 Explosions 472 | . 48 . . 424 Melee . | . . . . . Ramming 2 | . . 2 . . Kinetic 1124 | . . 181 487 456 Thermal 407 | . 252 . . 155 Explosive 472 | . 48 . . 424 Electromagnetic 68 | . 68 . . . Impact . | . . . . . Slashing . | . . . . . Piercing . | . . . . . Highest Corruption 2 | . . . . 2 Average Corruption 1 | . . . . 1 Corruption Purged . | . . . . . Corruption Blocked . | . . . . . Overload Shots . | . . . . . Overflow Damage 27 | . . . . 27 Projectiles . | . . . . . Explosions 27 | . . . . 27 Melee . | . . . . . Knockbacks . | . . . . . Impact . | . . . . . Kinetic . | . . . . . Secondary . | . . . . . Self-Inflicted Damage 308 | . 67 1 . 240 Shots 7 | . 2 . . 5 Rammed 1 | . . 1 . . Targets Rammed 1 | . . 1 . . Kicked . | . . . . . Crushed . | . . . . . Highest Temperature 677 | . 677 20 49 81 Average Temperature 119 | . 331 8 15 22 Received Heat Transfer 681 | . 282 90 180 129 Effects 17 | . 17 . . . Shutdowns 1 | . 1 . . . Energy Bleed 6 | . 6 . . . Interference 1 | . 1 . . . Matter Decay 3 | . 3 . . . Short Circuit 3 | . 3 . . . Damage (minor) 1 | . 1 . . . Damage (core) 2 | . 2 . . . Siege Activations . | . . . . . Robots Corrupted . | . . . . . Combat Hostiles . | . . . . . Parts Fried . | . . . . . Impact Corruptions . | . . . . . Robots Melted 1 | . . . . 1 Combat Hostiles 1 | . . . . 1 Parts Melted 8 | . 2 . 1 5 Heat Transferred 1036 | . 777 . . 259 Parts Sabotaged . | . . . . . Parts Stolen . | . . . . . Parts Stripped . | . . . . . Power Chain Reactions . | . . . . . Alert | -11 -10 -9 -9 -9 ------- Run | Yrd Mat Mat Sto Gar Peak Influence 1240 | . 106 87 546 1240 Initial 354 | . . 12 36 354 Average 387 | . 46 31 137 992 Maximum Alert Level 4 | . . . 2 4 Low Security (%) 59 | 100 100 100 77 . Level 1 3 | . . . 11 . Level 2 7 | . . . 10 12 Level 3 11 | . . . . 35 Level 4 16 | . . . . 51 Level 5 . | . . . . . High Security . | . . . . . Max Security . | . . . . . Squads Dispatched 4 | . 1 . 3 . Investigation . | . . . . . Extermination . | . . . . . Reinforcement 2 | . 1 . 1 . Assault 2 | . . . 2 . Garrison . | . . . . . Intercept . | . . . . . Searches Triggered . | . . . . . Construction Impeded . | . . . . . Haulers Reinforced . | . . . . . Active Scanning Responses . | . . . . . Cargo Convoy Interrupts . | . . . . . Stealth | -11 -10 -9 -9 -9 --------- Run | Yrd Mat Mat Sto Gar Distress Signals 2 | . 2 . . . Communications Jammed . | . . . . . Distress Signals . | . . . . . Times Spotted 59 | . 14 3 19 23 Peak Tracking Total 9 | . 6 2 9 5 Tactical Retreats . | . . . . . Traps | -11 -10 -9 -9 -9 ------- Run | Yrd Mat Mat Sto Gar Traps Triggered 6 | . . . 1 5 Indirectly . | . . . . . Trap Hack Attempts . | . . . . . Triggered . | . . . . . Disarmed . | . . . . . Reprogrammed . | . . . . . Reused . | . . . . . Traps Extracted . | . . . . . Installed . | . . . . . Triggered . | . . . . . Machines | -11 -10 -9 -9 -9 ---------- Run | Yrd Mat Mat Sto Gar Machines Disabled 5 | . . . . 5 Max in Single Turn 2 | . . . . 2 Garrison Relay 3 | . . . . 3 Phase Generator 1 | . . . . 1 Machines Repaired . | . . . . . Machines Dismantled . | . . . . . Machines Sabotaged . | . . . . . Overloaded Fab Kills . | . . . . . Hacking | -11 -10 -9 -9 -9 --------- Run | Yrd Mat Mat Sto Gar Machines Accessed 13 | . 5 1 4 3 Terminals 11 | . 4 1 3 3 Fabricators . | . . . . . Repair Stations . | . . . . . Recycling Units 1 | . 1 . . . Scanalyzers . | . . . . . Garrison Access 1 | . . . 1 . Total Hacks 32 | . 10 3 11 8 Successful 18 | . 8 2 6 2 Failed 14 | . 2 1 5 6 Catastrophic 2 | . . . . 2 Database Lockouts . | . . . . . Manual . | . . . . . Terminals 25 | . 7 3 7 8 Fabricators . | . . . . . Repair Stations . | . . . . . Recycling Units 3 | . 3 . . . Scanalyzers . | . . . . . Garrison Access 4 | . . . 4 . Terminal Hacks 15 | . 6 2 5 2 Record 2 | . . . 2 . Prototype ID Bank 1 | . 1 . . . Open Door 3 | . . . 2 1 Emergency Access Points 1 | . . . . 1 Alert Level 1 | . 1 . . . Maintenance Status 1 | . 1 . . . Transport Status 1 | . 1 . . . Hauler Manifests 2 | . 1 1 . . Zone Layout 3 | . 1 1 1 . Fabricator Hacks . | . . . . . Repair Station Hacks . | . . . . . Recycling Unit Hacks 2 | . 2 . . . Report Inventory 1 | . 1 . . . Retrieve Components 1 | . 1 . . . Scanalyzer . | . . . . . Garrison Access Hacks 1 | . . . 1 . Unlock Access 1 | . . . 1 . Unauthorized Hacks . | . . . . . Terminals . | . . . . . Fabricators . | . . . . . Repair Stations . | . . . . . Recycling Units . | . . . . . Scanalyzers . | . . . . . Garrison Access . | . . . . . Data Cores Recovered . | . . . . . Used . | . . . . . Hacking Detections 9 | . 3 1 3 2 Full Trace Events 1 | . . . . 1 Feedback Events . | . . . . . Feedback Blocked . | . . . . . Robot Schematics Acquired . | . . . . . Robots Built . | . . . . . Authchips . | . . . . . Time . | . . . . . Total Robot Build Rating . | . . . . . Part Schematics Acquired . | . . . . . Parts Built . | . . . . . Authchips . | . . . . . Time . | . . . . . Total Part Build Rating . | . . . . . Parts Repaired . | . . . . . Time . | . . . . . Parts Recycled . | . . . . . Recycled Matter . | . . . . . Retrieved Matter . | . . . . . Retrieved Components 1 | . 1 . . . Parts Scanalyzed . | . . . . . Part Schematics Acquired . | . . . . . Parts Damaged . | . . . . . Bothacking | -11 -10 -9 -9 -9 ------------ Run | Yrd Mat Mat Sto Gar Used RIF Installer 1 | . . . . 1 Robots Hacked . | . . . . . Non-combat . | . . . . . Combat . | . . . . . Robot Hacks Applied . | . . . . . Relay Couplers Released 11 | . . . . 11 Machine Destruction 11 | . . . . 11 Attached 1 | . . . . 1 Fabnet Peak Effective % . | . . . . . Robots Rewired . | . . . . . Allies Hacked . | . . . . . Hacks Repelled . | . . . . . Allies | -11 -10 -9 -9 -9 -------- Run | Yrd Mat Mat Sto Gar Total Allies 12 | . . . 12 . Largest Group 11 | . . . 11 10 Highest-Rated Group 142 | . . . 142 134 Highest-Rated Ally 31 | . . . 31 31 Total Orders 6 | . . . 6 . ROAM 2 | . . . 2 . EXPLORE 4 | . . . 4 . Ally Attacks 144 | . . . 70 74 Total Damage 1598 | . . . 832 766 Kills 28 | . . . 12 16 Allies Corrupted . | . . . . . Allies Melted . | . . . . . Intel | -11 -10 -9 -9 -9 ------- Run | Yrd Mat Mat Sto Gar Robot Analysis Total . | . . . . . Derelict Logs Recovered . | . . . . . Drone Launches 7 | . . . 7 . Drone Recoveries 5 | . . . 5 . Exploration | -11 -10 -9 -9 -9 ------------- Run | Yrd Mat Mat Sto Gar Turns Passed 2386 | 60 645 150 738 793 Spaces Moved 1707 | 49 465 179 353 661 Core 98 | 12 5 . 38 43 Treads . | . . . . . Legs 956 | 37 460 8 159 292 Wheels . | . . . . . Hover 653 | . . 171 156 326 Flight . | . . . . . Fastest Speed 48 | 50 120 56 48 48 Average Speed 105 | 102 120 65 143 86 Slowest Speed 350 | 120 150 120 350 150 Overloaded Moves . | . . . . . Propulsion Burnouts . | . . . . . Robots Hopped . | . . . . . Cave-ins Triggered . | . . . . . Exploration Rate (%) 39 | 3 51 14 48 81 Regions Visited 4 Branch Regions 1 Pre-discovered Areas . | . . . . . Known Exits Taken 1 | . . . 1 . Unknown Exits Taken 3 | 1 1 1 . . Scrap Searched . | . . . . . Spaces Dug . | . . . . . Terrain Destroyed 154 | . 15 . . 139 Melee . | . . . . . Projectile 1 | . . . . 1 AOE 153 | . 15 . . 138 Terrain Rammed . | . . . . . Walls Destroyed . | . . . . . Machines Disabled . | . . . . . Actions | -11 -10 -9 -9 -9 --------- Run | Yrd Mat Mat Sto Gar Total 2119 | 58 518 196 543 804 Wait 189 | . 6 . 136 47 Move 1704 | 48 464 178 353 661 Hop . | . . . . . Pick Up 30 | 5 12 4 4 5 Fast Attach 16 | . . . 9 7 Attach 21 | 5 10 2 1 3 Detach 1 | . 1 . . . Swap 8 | . . 1 7 . Drop 20 | . 4 2 9 5 Fire 97 | . 21 8 24 44 Melee . | . . . . . Ram 1 | . . 1 . . Kick . | . . . . . Crush . | . . . . . Escape Stasis 29 | . . . . 29 Rewire 3 | . . . . 3 Trap . | . . . . . Miscellaneous . | . . . . . Route ------- -11/Scrapyard -10/Materials (discovered 2 exits: *Mat / [*Min]) -9/Materials -9/Storage -9/Garrison (discovered 2 exits: [*Rec x2]) History --------- Turn | Location | Event 19 | -11/Scrapyard | Discovered new exit (range 15) 61 | -11/Scrapyard | Entered Materials 209 | -10/Materials | Core integrity fell below 50% 237 | -10/Materials | Discovered new exit (range 15) 245 | -10/Materials | Lost 4 parts (1p2n1w) 312 | -10/Materials | Build established: Mutant 337 | -10/Materials | Core integrity fell below 20% 387 | -10/Materials | Discovered new exit (range 7) 706 | -10/Materials | Entered another Materials area 706 | -9/Materials | Evolved 2 slots: Propulsion x2 770 | -9/Materials | Discovered new exit (range 17) 856 | -9/Materials | Entered Storage 1226 | -9/Storage | Assisted by bots powering up and referring to "LRC-V3" 1455 | -9/Storage | Met a pair of Derelict thieves 1542 | -9/Storage | Build established: Commander-Mutant 1574 | -9/Storage | Identified exit to Garrison 1594 | -9/Storage | Entered Garrison 1594 | -9/Garrison | Accompanied by 10 allies 1630 | -9/Garrison | Triggered checkpoint 1648 | -9/Garrison | Garrison Relay disabled 1694 | -9/Garrison | Triggered checkpoint 1726 | -9/Garrison | Triggered checkpoint 1737 | -9/Garrison | Discovered new exit (range 17) 1754 | -9/Garrison | Core integrity fell below 50% 1816 | -9/Garrison | Triggered checkpoint 1836 | -9/Garrison | Garrison Relay disabled 1904 | -9/Garrison | Triggered checkpoint 1923 | -9/Garrison | Phase Generator disabled 1931 | -9/Garrison | Discovered new exit (range 15) 1954 | -9/Garrison | Lost 4 parts (1p2n1w) 1967 | -9/Garrison | Core integrity fell below 20% 1978 | -9/Garrison | Garrison Relay disabled 2005 | -9/Garrison | Lost 3 allies 2068 | -9/Garrison | Triggered checkpoint 2155 | -9/Garrison | Installed Relay Interface Framework 2286 | -9/Garrison | Triggered checkpoint 2314 | -9/Garrison | Build established: Scavenger-Mutant 2387 | -9/Garrison | Destroyed by P-60 Hacker with Shock Rifle Last Messages --------------- 02229_ Acquired Relay Coupler [Grunt]. 02236_ Dropped Spread Laser. 02286_ Beams of light sweep through the air. An alarm sounds. 02286_ G-34 Mercenary destroyed. 02310_ Acquired 20 matter. 02321_ Acquired Ion Engine. 02331_ Acquired 10 matter. 02354_ Dropped Core Shielding. 02373_ P-60 Hacker springs to life. 02380_ P-60 Hacker suffers critical hit (Meltdown). 02380_ Mic. Nuclear Core melted. 02380_ Imp. Heat Sink melted. 02380_ Gravmag System melted. 02380_ Target Analyzer melted. 02380_ Mni. Grenade Launcher destroyed. 02380_ Destroyed Mni. Grenade Launcher. 02384_ The unstable cave ceiling collapses. 02386_ 30 Matter crushed. 02386_ Aluminum Leg destroyed. 02387_ The unstable cave ceiling collapses. Map ----- +----------------------------------------------------+ | ???????????????????????????????????????????????? | | ???????????????????????????????????????????????? | | ???????????????????????????????????????????????? | | ???????????????????????????????????????????????? | | ???????????????????????????????????????????????? | | ???????????????????????????????????????????????? | | ???????????????????????????????????????????????? | | ???????????????????????????????????????????????? | | ?????????????????????????????????? ???????????? | | ?????????????????????????????????? ???????????? | | ?????????????????????????????????? ???????????? | | ?????????????????????????????????# #??????????? | | ?????????????????????????????????# #??????????? | | ?????????????????????????????????# #??????####? | | ????????????????????????????????? ?????? #? | | ?????????????????????????????????# ?????? #? | | ?????????????????????????????????# #??????# #? | | ?????????????????????????????????# ####???# #? | | ?????????????????????????????#??? #???# #? | | ?????????????????????"""?????????# ## ??? #? | | ????????????????????? ?????????# ## #???# #? | | ???????????????##??### #?????????# ## #???# ## | | ???????????????+ ## # #?????????# ## #???# ## | | ???????????????# ! ##????????# ## #??## ## | | ??????????# # # ########## ## #### | | ???????????## |p @ ! | | ??????????# # p ########## | | ???????????????# ! ##????????########## ## | | ???????????????+ ## #???????????????### ## | | ???????????????##??######???????????????# | | ????????????????????????????????????????# | | ????????????????????????????????????????# % | | ????????????????????????????????????????# =%=* | | ????????????????????????????????????????###%*%## | | ?????????????????????????????????##########*%!## | | ?????????????????????????????????# | | ?????????????????????????????????# = | | ?????????????????????????????????# ####### ! * | | ?????????????????????????????????? ??????# [## | | ?????????????????????????????????# ??????# [## | | ????????????####?????????????????# ####### ## | | ????????????#""#?????????????????# #? | | ????????????#T #?????????????????# *####### #? | | ????????????#" #?????????????????#=%??????#=% #? | | ????????????## #?????????????????# !#?????# #? | | ??????????#### ############################ #? | | ??????????# * =!%== #? | | ??????????# % =*%%[%=! [ #? | | ??????????# *=%== [= =% #? | | ??????????# #################### ^####### ###? | +----------------------------------------------------+ Best States ------------- Heat Dissipation 28 Energy Generation 12 Energy Capacity 450 Matter Stores 300 Matter Capacity 300 Sight Range 18 Terrain Scan Density 10 Core Shielding 20 Evasion (%) 55 Melee Accuracy 5 Relay Coupler Types 1 Relay Coupler Value 10 Item Schematics ----------------- None Robot Schematics ------------------ None Fabricated ------------ Nothing Alien Tech Used ----------------- None Achievements -------------- None Challenges ------------ None Game ------ Seed GrenadeMetafieldRefractor Manual? 0 Play Time 00:31:22 Cumulative 41.1 hours Start 2024.07.09 @ 19:15:23 End 2024.07.09 @ 20:04:44 Sessions 3 Manual Loads 0 Difficulty Rogue Special Mode None Game No. 116 Rogue 116 Adventurer 0 Explorer 0 Win Type - Total 0 Types 0/0/0/0/0/0/0/0/0 Lore% 18 Gallery% 36 Achievement% 24 Wizard Run 0 Options --------- Layout 0 ASCII 0 Keyboard 0 Movement Arrows Keybinds 0 Fullscreen 1 Font 12/Smallcaps Map View 38x28 Zoom Use 94% Tactical HUD 1 Map Filters NONE Filters NONE Steam SD RUN: 71280e0d-8dcb-4b6b-b672-b7f33922534d